Cogmind - Beta 15 @@@ ROGUE MODE // 2025.06.21 @ 15:35:49 Player: Elxavo Result: Self-destructed Performance ------------- Evolutions (2) 1000 Regions Visited (5) 1000 Robots Destroyed (40) 200 Value Destroyed (1130) 1130 Prototype IDs (0) 0 Alien Tech Used (0) 0 Bonus (0) 0 TOTAL SCORE: 3330 Bonus ------- None Cogmind --------- Core Integrity 477/550 Matter 274/300 Energy 240/240 System Corruption 0% Temperature Warm (162) Movement Walking (127) Location -8/Materials Parts ------- > --- POWER (1) -------- Nuclear Core > --- PROPULSION (4) --- Aluminum Leg Improved Titanium Leg Improved Titanium Leg Improved Titanium Leg > --- UTILITY (4) ------ Medium Storage Unit Seismic Detector > --- WEAPON (2) ------- Heavy Particle Cannon Minigun > --- INVENTORY (10) --- Deuterium Engine Light Nuclear Core Aluminum Leg Aluminum Leg Aluminum Leg Aluminum Leg Carbon-fiber Leg Rocket Launcher Mining Laser Peak State ------------ > --- POWER ------------ Nuclear Core > --- PROPULSION ------- Improved Titanium Leg Improved Titanium Leg Improved Titanium Leg Improved Titanium Leg > --- UTILITY ---------- Medium Storage Unit Seismic Detector > --- WEAPON ----------- Heavy Particle Cannon Minigun > --- INVENTORY -------- Improved Ion Engine Deuterium Engine Aluminum Leg Aluminum Leg Aluminum Leg Carbon-fiber Leg Rocket Launcher Mining Laser [Rating: 28] Favorites ----------- Power Ion Engine Engine Ion Engine Power Core Nuclear Core Propulsion Aluminum Leg Leg Aluminum Leg Utility Medium Storage Unit Device Seismic Detector Storage Medium Storage Unit Processor Signal Interpreter Protection Light Armor Plating Weapon Heavy Assault Rifle Energy Cannon Heavy Particle Cannon Ballistic Gun Heavy Assault Rifle Build | -11 -10 -10 -9 -9 -8 ------- Run | Yrd Mat Min Mat Min Mat Slots Evolved 4 | . . . 2 . 2 Power . | . . . . . . Propulsion 2 | . . . 1 . 1 Utility 2 | . . . 1 . 1 Weapon . | . . . . . . Parts Attached 32 | 8 2 4 10 3 5 Power 4 | 1 . 1 1 . 1 Engine 3 | 1 . 1 1 . . Core 1 | . . . . . 1 Reactor . | . . . . . . Propulsion 13 | 2 . 2 4 3 2 Treads . | . . . . . . Leg 13 | 2 . 2 4 3 2 Wheel . | . . . . . . Hover . | . . . . . . Flight . | . . . . . . Utility 7 | 3 2 . 2 . . Device 2 | 2 . . . . . Storage 2 | 1 1 . . . . Processor 1 | . 1 . . . . Hackware . | . . . . . . Protection 2 | . . . 2 . . Artifact . | . . . . . . Weapon 8 | 2 . 1 3 . 2 Energy Gun . | . . . . . . Energy Cannon 1 | . . . . . 1 Ballistic Gun 7 | 2 . 1 3 . 1 Ballistic Cannon . | . . . . . . Launcher . | . . . . . . Special Weapon . | . . . . . . Impact Weapon . | . . . . . . Slashing Weapon . | . . . . . . Piercing Weapon . | . . . . . . Special Melee Weapon . | . . . . . . Unidentified Prototypes . | . . . . . . Parts Lost 13 | . . 3 6 . 4 Power 1 | . . 1 . . . Propulsion 6 | . . 2 3 . 1 Utility 2 | . . . 1 . 1 Weapon 4 | . . . 2 . 2 Highest Loss Streak 2 | . . 2 1 . 2 To Critical Strikes 2 | . . . 1 . 1 Average Backups 9 | 4 8 9 9 9 8 Power 1 | . 1 . 1 2 1 Propulsion 2 | 2 3 2 1 2 3 Utility 2 | . 2 4 2 . . Weapon 2 | . 1 2 4 4 3 Tool/Special . | . . . . . . Unused Backups 17 | . 1 4 1 2 9 Power 3 | . . . . . 3 Propulsion 7 | . . 3 . 1 3 Utility 3 | . . 1 1 1 . Weapon 4 | . 1 . . . 3 Tool/Special . | . . . . . . Average Slot Usage (%) 96 | . 100 99 97 100 83 Engine 11 | . 14 14 10 11 6 Leg 30 | . 28 27 31 33 35 Device 6 | . 9 . 8 11 9 Storage 12 | . 14 14 11 11 9 Processor 5 | . 4 14 2 . . Protection 4 | . . . 10 11 3 Ballistic Gun 23 | . 28 28 22 22 14 Peak Build Rating 28 | 9 10 9 13 22 28 Average Rating 13 | 6 8 8 12 18 25 On Entrance 10 | . 8 8 9 13 22 Naked Turns . | . . . . . . Heaviest Build 27 | 14 19 20 27 27 27 Greatest Support 80 | 20 20 20 30 60 80 Greatest Overweight (x) 5 | . . 5 1 . . Average Overweight (x) . | . . . . . . Largest Inventory Capacity 10 | 8 10 10 10 10 10 Average Capacity 9 | 7 9 10 10 10 10 Most Carried 10 | 7 10 10 10 10 10 Average Carried 9 | 4 8 9 9 9 8 Final Capacity 10 | 8 10 10 10 10 10 Final Carried 10 | 7 10 10 7 10 9 Class Distribution -------------------- 52% | Mutant 47% | Scavenger-Mutant Dominant Class ---------------- Mutant | -10/Materials Mutant | -10/Mines Scavenger-Mutant | -9/Materials Scavenger-Mutant | -9/Mines Scavenger-Mutant | -8/Materials Resources | -11 -10 -10 -9 -9 -8 ----------- Run | Yrd Mat Min Mat Min Mat Matter Collected 1134 | 292 19 203 368 72 180 Remotely . | . . . . . . Salvage Created 1436 | 36 19 505 487 119 270 Parts 79 | 7 1 21 36 2 12 Haulers Intercepted . | . . . . . . Recyclers Shooed . | . . . . . . Parts Field Recycled . | . . . . . . Retrieved Matter . | . . . . . . Parts Self-Destructed . | . . . . . . Prevented . | . . . . . . Kills | -11 -10 -10 -9 -9 -8 ------- Run | Yrd Mat Min Mat Min Mat Combat Hostiles Destroyed 32 | . . 8 15 3 6 Guns 28 | . . 8 15 3 2 Cannons 4 | . . . . . 4 Classes Destroyed 8 | 1 1 3 2 . 1 Worker 1 | . . . 1 . . Tunneler 2 | 2 . . . . . Recycler 1 | . . 1 . . . Watcher 4 | . 1 . 3 . . Swarmer 10 | . . . 9 . 1 Grunt 16 | . . 6 4 3 3 Sentry 5 | . . 2 2 . 1 Hunter 1 | . . . . . 1 Best Kill Streak 4 | 1 1 2 4 3 3 Combat Bots Only 4 | . . 2 4 3 3 Max Kills in Single Turn 1 | 1 1 1 1 1 1 Gunslinging . | . . . . . . Exploded . | . . . . . . Melee . | . . . . . . Uniques/NPCs Destroyed . | . . . . . . Combat | -11 -10 -10 -9 -9 -8 -------- Run | Yrd Mat Min Mat Min Mat Hostile Shots Fired 241 | . . 51 98 13 79 Missed 73 | . . 11 31 3 28 Hits 168 | . . 40 67 10 51 Projectile 168 | . . 40 67 10 51 Critical Strikes 8 | . . 1 2 1 4 Damage Taken 2133 | . . 597 626 114 796 Core 280 | . . 118 30 59 73 Absorbed by Shields . | . . . . . . Core Remaining (%) 76 | 100 . 52 . 77 . Volleys Fired 136 | 6 4 34 51 6 35 Largest 2 | 2 2 2 2 2 2 Hottest 100 | 40 40 43 46 46 100 Shots Fired 272 | 12 8 68 102 12 70 Gun 254 | 12 8 68 102 12 52 Cannon 18 | . . . . . 18 Launcher . | . . . . . . Special . | . . . . . . Kinetic 254 | 12 8 68 102 12 52 Thermal 18 | . . . . . 18 Explosive . | . . . . . . Electromagnetic . | . . . . . . Robot Hit Streak 6 | 2 5 5 4 3 6 Robot Miss Streak 8 | 5 2 4 8 2 2 Penetration Max . | . . . . . . Secondary Targets 8 | . . 2 4 2 . Max Gunslinging Chain 1 | . . 1 1 1 . Shots Hit Robots 143 | 4 5 42 45 8 39 Core Hits 67 | 2 1 23 24 6 11 Critical Kills 1 | . . 1 . . . Critical Parts Destroyed 1 | . . . 1 . . Critical Strikes 2 | . . 1 1 . . Destroy 2 | . . 1 1 . . Melee Attacks . | . . . . . . Impact . | . . . . . . Slashing . | . . . . . . Piercing . | . . . . . . Sneak Attacks . | . . . . . . Combat Hostiles . | . . . . . . Follow-up Attacks . | . . . . . . Damage Inflicted 2044 | 45 70 437 682 120 690 Guns 1769 | 45 70 437 682 120 415 Cannons 275 | . . . . . 275 Explosions . | . . . . . . Melee . | . . . . . . Ramming . | . . . . . . Kinetic 1769 | 45 70 437 682 120 415 Thermal 275 | . . . . . 275 Explosive . | . . . . . . Electromagnetic . | . . . . . . Impact . | . . . . . . Slashing . | . . . . . . Piercing . | . . . . . . Highest Corruption . | . . . . . . Average Corruption . | . . . . . . Corruption Purged . | . . . . . . Corruption Blocked . | . . . . . . Overload Shots . | . . . . . . Overflow Damage . | . . . . . . Projectiles . | . . . . . . Explosions . | . . . . . . Melee . | . . . . . . Knockbacks . | . . . . . . Impact . | . . . . . . Kinetic . | . . . . . . Secondary . | . . . . . . Self-Inflicted Damage . | . . . . . . Shots . | . . . . . . Rammed . | . . . . . . Targets Rammed . | . . . . . . Kicked . | . . . . . . Crushed . | . . . . . . Highest Temperature 338 | . . 27 20 18 338 Average Temperature 64 | . . 10 6 8 124 Received Heat Transfer 675 | . . 300 111 84 180 Effects 1 | . . . . . 1 Shutdowns 1 | . . . . . 1 Siege Activations . | . . . . . . Martial Activations . | . . . . . . Shielding Activations . | . . . . . . Robots Disrupted . | . . . . . . Combat Hostiles . | . . . . . . Robots Corrupted . | . . . . . . Combat Hostiles . | . . . . . . Parts Fried . | . . . . . . Impact Corruptions . | . . . . . . Robots Melted . | . . . . . . Combat Hostiles . | . . . . . . Parts Melted . | . . . . . . Heat Transferred 407 | . . . . . 407 Parts Sabotaged . | . . . . . . Parts Stolen . | . . . . . . Parts Stripped . | . . . . . . Power Chain Reactions . | . . . . . . Alert | -11 -10 -10 -9 -9 -8 ------- Run | Yrd Mat Min Mat Min Mat Maximum Alert Level . | . . . . . . Low Security (%) 100 | 100 100 100 100 100 100 Level 1 . | . . . . . . Level 2 . | . . . . . . Level 3 . | . . . . . . Level 4 . | . . . . . . Level 5 . | . . . . . . High Security . | . . . . . . Max Security . | . . . . . . Peak Influence 135 | 5 16 46 135 95 63 Initial 35 | . . 1 . 35 1 Average 21 | . 1 10 54 21 16 Influence Increases 940 | 10 38 215 400 75 202 Destroy 0b10 Robot/C 640 | . . 160 300 60 120 Destroy 0b10 Robot/NC 45 | 10 5 10 20 . . Destroy Leader 148 | . 2 30 76 10 30 Successful Hack 23 | . 16 . 2 5 . Disable Machine 45 | . . . . . 45 Destroy Structure 9 | . . . 2 . 7 Lose Combat Pursuer 30 | . 15 15 . . . Influence Decreases 881 | 10 33 220 308 162 148 Entered New Map 65 | . . 4 . 57 4 Time Decay 736 | 10 33 206 258 105 124 Lost Part 80 | . . 10 50 . 20 Squads Dispatched 5 | . . . 2 1 2 Investigation 3 | . . . 1 1 1 Extermination . | . . . . . . Reinforcement 2 | . . . 1 . 1 Assault . | . . . . . . Garrison . | . . . . . . Intercept . | . . . . . . Searches Triggered . | . . . . . . Construction Impeded . | . . . . . . Haulers Reinforced . | . . . . . . Active Scanning Responses . | . . . . . . Cargo Convoy Interrupts . | . . . . . . Stealth | -11 -10 -10 -9 -9 -8 --------- Run | Yrd Mat Min Mat Min Mat Distress Signals 5 | . . . 5 . . Communications Jammed . | . . . . . . Distress Signals . | . . . . . . Times Spotted 59 | . 7 8 28 3 13 Peak Tracking Total 5 | . 3 2 5 3 4 Tactical Retreats 2 | . 1 1 . . . Traps | -11 -10 -10 -9 -9 -8 ------- Run | Yrd Mat Min Mat Min Mat Traps Triggered 1 | . . . 1 . . Indirectly . | . . . . . . Trap Hack Attempts . | . . . . . . Triggered . | . . . . . . Disarmed . | . . . . . . Reprogrammed . | . . . . . . Reused . | . . . . . . Traps Extracted . | . . . . . . Installed . | . . . . . . Triggered . | . . . . . . Machines | -11 -10 -10 -9 -9 -8 ---------- Run | Yrd Mat Min Mat Min Mat Machines Disabled 5 | . . 1 1 . 3 Max in Single Turn 1 | . . 1 1 . 1 Machines Repaired . | . . . . . . Machines Dismantled . | . . . . . . Machines Sabotaged . | . . . . . . Overloaded Fab Kills . | . . . . . . Hacking | -11 -10 -10 -9 -9 -8 --------- Run | Yrd Mat Min Mat Min Mat Machines Accessed 9 | . 3 . 3 2 1 Terminals 6 | . 3 . 1 1 1 Fabricators . | . . . . . . Repair Stations . | . . . . . . Recycling Units . | . . . . . . Scanalyzers 2 | . . . 2 . . Garrison Access . | . . . . . . Total Hacks 19 | . 4 . 9 2 4 Successful 11 | . 2 . 7 2 . Failed 8 | . 2 . 2 . 4 Catastrophic 1 | . . . . . 1 Database Lockouts . | . . . . . . Manual 4 | . 3 . 1 . . Terminals 11 | . 4 . 2 1 4 Fabricators . | . . . . . . Repair Stations . | . . . . . . Recycling Units . | . . . . . . Scanalyzers 7 | . . . 7 . . Garrison Access . | . . . . . . Terminal Hacks 5 | . 2 . 1 2 . Open Door 1 | . . . . 1 . Level Access Points 1 | . 1 . . . . Maintenance Status 1 | . . . 1 . . Registered Components 1 | . 1 . . . . Zone Layout 1 | . . . . 1 . Fabricator Hacks . | . . . . . . Repair Station Hacks . | . . . . . . Recycling Unit Hacks . | . . . . . . Scanalyzer 6 | . . . 6 . . Insert Component 3 | . . . 3 . . Analyze 3 | . . . 3 . . Garrison Access Hacks . | . . . . . . Unauthorized Hacks . | . . . . . . Terminals . | . . . . . . Fabricators . | . . . . . . Repair Stations . | . . . . . . Recycling Units . | . . . . . . Scanalyzers . | . . . . . . Garrison Access . | . . . . . . Data Cores Recovered . | . . . . . . Used . | . . . . . . Hacking Detections 5 | . 1 . 3 . 1 Full Trace Events 2 | . . . 1 . 1 Feedback Events . | . . . . . . Feedback Blocked . | . . . . . . Robot Schematics Acquired . | . . . . . . Robots Built . | . . . . . . Authchips . | . . . . . . Time . | . . . . . . Total Robot Build Rating . | . . . . . . Part Schematics Acquired 3 | . . . 3 . . Parts Built . | . . . . . . Authchips . | . . . . . . Time . | . . . . . . Total Part Build Rating . | . . . . . . Parts Repaired . | . . . . . . Time . | . . . . . . Parts Recycled . | . . . . . . Recycled Matter . | . . . . . . Retrieved Matter . | . . . . . . Retrieved Components . | . . . . . . Parts Scanalyzed 3 | . . . 3 . . Part Schematics Acquired 3 | . . . 3 . . Parts Damaged . | . . . . . . Bothacking | -11 -10 -10 -9 -9 -8 ------------ Run | Yrd Mat Min Mat Min Mat Used RIF Installer . | . . . . . . Robots Hacked . | . . . . . . Non-combat . | . . . . . . Combat . | . . . . . . Robot Hacks Applied . | . . . . . . Relay Couplers Released . | . . . . . . Fabnet Peak Effective % . | . . . . . . Robots Rewired . | . . . . . . Allies Hacked . | . . . . . . Hacks Repelled . | . . . . . . Allies | -11 -10 -10 -9 -9 -8 -------- Run | Yrd Mat Min Mat Min Mat Total Allies . | . . . . . . Largest Group . | . . . . . . Highest-Rated Group . | . . . . . . Highest-Rated Ally . | . . . . . . Total Orders . | . . . . . . Ally Attacks . | . . . . . . Total Damage . | . . . . . . Kills . | . . . . . . Allies Corrupted . | . . . . . . Allies Melted . | . . . . . . Intel | -11 -10 -10 -9 -9 -8 ------- Run | Yrd Mat Min Mat Min Mat Active Infowar (turns) 1599 | 60 202 . 455 458 424 Terrain 83 | 6 77 . . . . Seismic 1516 | 54 125 . 455 458 424 Robot Analysis Total . | . . . . . . Derelict Logs Recovered 5 | . . 2 . 3 . Drone Launches . | . . . . . . Drone Recoveries . | . . . . . . Exploration | -11 -10 -10 -9 -9 -8 ------------- Run | Yrd Mat Min Mat Min Mat Turns Passed 2841 | 120 309 909 621 458 424 Spaces Moved 1804 | 74 223 656 327 304 220 Core 7 | 5 . 2 . . . Treads . | . . . . . . Legs 1797 | 69 223 654 327 304 220 Wheels . | . . . . . . Hover . | . . . . . . Flight . | . . . . . . Fastest Speed 50 | 50 120 120 120 120 127 Average Speed 123 | 115 120 120 128 126 129 Slowest Speed 300 | 120 120 300 190 130 130 Overloaded Moves . | . . . . . . Propulsion Burnouts . | . . . . . . Robots Hopped . | . . . . . . Potential Cave-ins . | . . . . . . Cave-ins Triggered . | . . . . . . Exploration Rate (%) 41 | 6 31 87 39 63 25 Regions Visited 5 Branch Regions 2 Pre-discovered Areas 2 | . . . . 2 . Known Exits Taken 2 | . 1 1 . . . Unknown Exits Taken 3 | 1 . . 1 1 . Scrap Searched 2 | . . 1 . 1 . Spaces Dug . | . . . . . . Terrain Destroyed 5 | . . . . . 5 Melee . | . . . . . . Projectile 5 | . . . . . 5 AOE . | . . . . . . Terrain Rammed . | . . . . . . Walls Destroyed . | . . . . . . Machines Disabled . | . . . . . . Actions | -11 -10 -10 -9 -9 -8 --------- Run | Yrd Mat Min Mat Min Mat Total 2154 | 94 257 715 428 366 294 Wait 130 | . 22 8 28 47 25 Move 1799 | 73 222 655 326 303 220 Hop . | . . . . . . Pick Up 36 | 7 4 8 7 4 6 Fast Attach 9 | 7 . . 2 . . Attach 14 | . . 3 7 . 4 Detach . | . . . . . . Swap 12 | 1 3 1 3 3 1 Drop 18 | . 2 6 4 3 3 Fire 136 | 6 4 34 51 6 35 Melee . | . . . . . . Ram . | . . . . . . Kick . | . . . . . . Crush . | . . . . . . Escape Stasis . | . . . . . . Rewire . | . . . . . . Trap . | . . . . . . Miscellaneous . | . . . . . . Route ------- -11/Scrapyard -10/Materials (discovered 4 exits: *Mat x3 / *Min) -10/Mines (discovered 2 exits: *Mat x2) -9/Materials (discovered 3 exits: *Mat / *Min / Sto) -9/Mines (discovered 2 exits: *Mat x2) -8/Materials (discovered 1 exit: Fac) History --------- Turn | Location | Event 3 | -11/Scrapyard | Discovered new exit (range 15) 121 | -11/Scrapyard | Entered Materials 240 | -10/Materials | Discovered new exit (range 13) 264 | -10/Materials | Identified exit to Materials 305 | -10/Materials | Build established: Mutant 306 | -10/Materials | Discovered new exit (range 16) 340 | -10/Materials | Identified exit to Mines 430 | -10/Materials | Entered Mines 480 | -10/Mines | Discovered exit to Materials (range 11) 504 | -10/Mines | Learned Materials stockpile data 921 | -10/Mines | Discovered exit to Materials (range 8) 1171 | -10/Mines | Received a Rocket Launcher from a helpful Derelict 1339 | -10/Mines | Entered Materials 1339 | -9/Materials | Evolved 2 slots: Propulsion x1, Utility x1 1340 | -9/Materials | Identified exit to Storage 1563 | -9/Materials | Discovered new exit (range 3) 1653 | -9/Materials | Build established: Scavenger-Mutant 1677 | -9/Materials | Discovered new exit (range 13) 1960 | -9/Materials | Entered Mines 1986 | -9/Mines | Met a Derelict bent on vengeance 2109 | -9/Mines | Learned 2 Materials zone layouts 2126 | -9/Mines | Met a Derelict shopkeep closing up shop 2242 | -9/Mines | Learned location of Storage (-9) 2353 | -9/Mines | Discovered new exit (range 10) 2400 | -9/Mines | Discovered new exit (range 3) 2418 | -9/Mines | Entered Materials 2418 | -8/Materials | Evolved 2 slots: Propulsion x1, Utility x1 2419 | -8/Materials | Identified exit to Factory 2842 | -8/Materials | Self-destructed Last Messages --------------- 02746_ Imp. Titanium Leg destroyed. 02751_ U-05 Engineer builds a Wall. 02751_ G-47 Trooper destroyed. 02753_ Power failure, Nuclear Core shutdown. 02757_ K-01 Serf collects debris. 02757_ G-47 Trooper destroyed. 02760_ K-01 Serf collects debris. 02760_ U-05 Engineer builds a Wall. 02763_ K-01 Serf collects debris. 02765_ Acquired 48 matter. 02766_ K-01 Serf collects debris. 02768_ Acquired Lgt. Nuclear Core. 02770_ Acquired Aluminum Leg. 02770_ K-01 Serf collects debris. 02772_ Acquired Aluminum Leg. 02773_ Acquired 14 matter. 02775_ K-01 Serf collects debris. 02789_ K-01 Serf cleans the Material Processor. 02834_ Processing Tank disabled. 02841_ Critical hit (Burn: +37). Map ----- +----------------------------------------------------+ | " ^""""" ?????????????????????????????????????? | | """"" ######+#######?????????????????????????? | | ^ """"" # #?????????????????????????? | | """ #? #?????????????????????????? | | #??? ###########???????????????? | | #????? ## #???????????????? | | %[ #??????? ## #???????????????? | | #" "### ###########+### ] #???????????????? | | #"R"###= [* # #???????????????? | | #"""#?# * + ![ #???????????????? | | #####?# # ![ #???????????????? | | ??????# ########### # #???????????????? | | ####### # #???# # #???????????????? | | # #= = #???# #= #???????????????? | | # # #???# ##########???????????????? | | # # ][/ #???# #????????????????????????? | | # # ][/ ##### #????????????????????????? | | # # ]// + #????????????????????????? | | + + ######+######????????????????????? | | # # # / #????????????????????? | | # # """ # """ """ #????????????????????? | | ####### %=# """ # """ """ #????????????????????? | | # """ # "" g""" #????????????????????? | | # # """Y "" #????????????????????? | | #### ## ! """g "" #????????????????????? | | #### ##########; @ #????????????????????? | | #??# # ##############????????????????????? | | #??# # """"" # ???????????????????????????????? | | #??# # """"" # ???????????????????????????????? | | #??# # """"" + ???????????????????????????????? | | #??# # """"" # ???????????????????????????????? | | #??# # """"" # ???????????????????????????????? | | #??# # """"" ## ???????????????????????????????? | | #??# # """"" ## ???????????????????????????????? | | ???# # ## ???????????????????????????????? | | ???# ########### ???????????????????????????????? | | ???# #?# #?????# ???????????????????????????????? | | ???# ########### ???????????????????????????????? | | ???# ## # ???????????????????????????????? | | ???# ## # ???????????????????????????????? | | ???# ## # ???????????????????????????????? | | ???# ## # ???????????????????????????????? | | ???# ## + ???????????????????????????????? | | ?????????????????? """ """ """ ##??????? | | ?????????????????? """ """ """ ##??????? | | ?????????????????? """ """ """ ##??????? | | ?????????????????? ##??????? | | ?????????????????? #??????? | | ?????????????????? #??????? | | ?????????????????? +??????? | +----------------------------------------------------+ Best States ------------- Heat Dissipation 31 Energy Generation 14 Energy Capacity 265 Matter Stores 300 Matter Capacity 300 Sight Range 16 Terrain Scan Range 16 Terrain Scan Density 10 Armor Coverage 150 Evasion (%) 55 Item Schematics ----------------- Lgt. Armor Plating | -9/Materials | Scanalyzed Seismic Detector | -9/Materials | Scanalyzed Rocket Launcher | -9/Materials | Scanalyzed Robot Schematics ------------------ None Fabricated ------------ Nothing Repaired ---------- Nothing Alien Tech Used ----------------- None Achievements -------------- None Challenges ------------ None Game ------ Seed MiningTachyonBlaster Manual? 0 Play Time 00:46:48 Cumulative 37.9 hours Start 2025.06.21 @ 14:47:01 End 2025.06.21 @ 15:35:49 Sessions 1 Manual Loads 0 Difficulty Rogue Special Mode None Game No. 46 Rogue 46 Adventurer 0 Explorer 0 Win Type - Total 0 Types 0/0/0/0/0/0/0/0/0/0 Lore% 13 Gallery% 19 Achievement% 16 Wizard Run 0 Options --------- Layout 0 ASCII 0 Keyboard 0 Movement Mouse Keybinds 0 Fullscreen 1 Font 18/SmallcapsGlow Map View 76x50 Zoom Use 0% Tactical HUD 1 Map Filters NONE Filters LOW_CONTRAST(13,24,33) Steam 1 RUN: 0655c3ef-d7b1-4fa9-8a04-944b3a130052